[Event "European Online Club-ch-D 2021"]
[Site "Online"]
[Date "2021.03.27"]
[Round "2.14"]
[White "Dolana, Andrei-Theodor"]
[Black "Gongora Montes, Benjamin"]
[Result "0-1"]
[ECO "C45"]
[WhiteElo "2359"]
[BlackElo "2198"]
[Annotator "NA"]
[PlyCount "57"]
[EventDate "2021.03.27"]
[EventType "team-tourn"]
[EventCountry "NET"]
[SourceTitle "playchess.com"]
[Source "ChessBase"]
[SourceQuality "1"]
[TimeControl "900+5"]

1. Nf3 {[%emt 0:00:00]} Nc6 {[%emt 0:00:09]} 2. e4 {[%emt 0:00:58]} e5 {[%emt 0:00:06]} 3. d4 {[%emt 0:00:02]} exd4 {[%emt 0:00:03]} 4. Nxd4 {[%emt 0:00:01]} Nf6 {[%emt 0:00:03]} 5. Nxc6 {[%emt 0:00:16]} bxc6 {[%emt 0:00:04]} 6. e5 {[%emt 0:00:03]} Qe7 {[%emt 0:00:03]} 7. Qe2 {[%emt 0:00:03]} Nd5 {[%emt 0:00:04]} 8. c4 {[%emt 0:00:09]} Nb6 {[%emt 0:00:02]} 9. Nd2 {[%emt 0:02:56]} a5 {[%emt 0:00:21]} 10. Qe4 {[%emt 0:01:15]} g6 {[%emt 0:00:27]} 11. Bd3 {[%emt 0:03:43]} Bg7 {[%emt 0:00:10]} 12. Nf3 {[%emt 0:00:02]} O-O {[%emt 0:00:35]} 13. O-O {[%emt 0:00:11]} f6 {[%emt 0:00:29]} 14. exf6 {[%emt 0:03:35]} Qxe4 {[%emt 0:00:06]} 15. Bxe4 {[%emt 0:00:00]} Bxf6 {[%emt 0:00:03]} 16. Bh6 {[%emt 0:01:22]} Re8 {[%emt 0:00:05]} 17. Rfe1 {[%emt 0:00:35]} Ba6 {[%emt 0:00:29]} 18. c5 {[%emt 0:00:19]} Na4 {[%emt 0:00:12]} 19. Rac1 {[%emt 0:00:40]} Nxb2 {[%emt 0:00:13]} 20. Bf4 {[%emt 0:00:15]} Rac8 {[%emt 0:01:41]} 21. Bc2 {[%emt 0:00:12]} Rxe1+ {[%emt 0:00:17]} 22. Rxe1 {[%emt 0:00:02]} Nd3 {[%emt 0:00:07]} 23. Bxd3 {[%emt 0:00:05]} Bxd3 {[%emt 0:00:02]} 24. Ne5 {[%emt 0:00:07]} Bf5 {[%emt 0:00:06]} 25. f3 {[%emt 0:00:09]} Re8 {[%emt 0:00:28]} 26. g4 {[%emt 0:00:03]} Be6 {[%emt 0:00:11]} 27. g5 {[%emt 0:00:07]} Be7 {[%emt 0:00:17]} 28. Ng4 {[%emt 0:00:05]} Bxg4 {[%emt 0:00:10]} 29. fxg4 {[%emt 0:00:04]} 0-1

[Event "European Online Club-ch-D 2021"]
[Site "Online"]
[Date "2021.03.27"]
[Round "2.15"]
[White "Pascual Palomo, Lucia"]
[Black "Toma, Radu-Cristian"]
[Result "0-1"]
[ECO "B30"]
[WhiteElo "2101"]
[BlackElo "2385"]
[Annotator "NA"]
[PlyCount "74"]
[EventDate "2021.03.27"]
[EventType "team-tourn"]
[EventCountry "NET"]
[SourceTitle "playchess.com"]
[Source "ChessBase"]
[SourceQuality "1"]
[TimeControl "900+5"]

1. e4 {[%emt 0:00:00]} c5 {[%emt 0:00:06]} 2. Nf3 {[%emt 0:00:21]} Nc6 {[%emt 0:00:04]} 3. Bb5 {[%emt 0:00:03]} e6 {[%emt 0:00:02]} 4. Bxc6 {[%emt 0:00:05]} bxc6 {[%emt 0:00:02]} 5. e5 {[%emt 0:00:08]} Ne7 {[%emt 0:00:32]} 6. O-O {[%emt 0:00:06]} Ng6 {[%emt 0:00:05]} 7. d3 {[%emt 0:00:06]} Be7 {[%emt 0:00:31]} 8. Nc3 {[%emt 0:00:09]} O-O {[%emt 0:01:00]} 9. Re1 {[%emt 0:00:14]} f6 {[%emt 0:00:15]} 10. b3 {[%emt 0:00:25]} fxe5 {[%emt 0:00:35]} 11. Nxe5 {[%emt 0:00:32]} Nxe5 {[%emt 0:01:09]} 12. Rxe5 {[%emt 0:00:08]} Bf6 {[%emt 0:00:40]} 13. Rxc5 {[%emt 0:00:08]} Bd4 {[%emt 0:01:56]} 14. Rc4 {[%emt 0:00:13]} Bxf2+ {[%emt 0:01:05]} 15. Kh1 {[%emt 0:00:05]} d5 {[%emt 0:00:07]} 16. Ra4 {[%emt 0:02:35]} e5 {[%emt 0:00:31]} 17. Ba3 {[%emt 0:01:22]} c5 {[%emt 0:01:28]} 18. b4 {[%emt 0:01:49]} Bd4 {[%emt 0:01:09]} 19. Qe1 {[%emt 0:01:04]} Qe8 {[%emt 0:00:32]} 20. Ra5 {[%emt 0:00:37]} Qf7 {[%emt 0:00:11]} 21. Rxc5 {[%emt 0:02:06]} Bh3 {[%emt 0:00:53]} 22. Qe2 {[%emt 0:01:27]} Bg4 {[%emt 0:00:06]} 23. Qe1 {[%emt 0:00:39]} Bf3 {[%emt 0:00:29]} 24. Qg3 {[%emt 0:00:21]} Bxc5 {[%emt 0:01:12]} 25. bxc5 {[%emt 0:00:33]} d4 {[%emt 0:00:04]} 26. gxf3 {[%emt 0:00:22]} dxc3 {[%emt 0:00:04]} 27. Rf1 {[%emt 0:00:14]} Qd5 {[%emt 0:00:07]} 28. Qg4 {[%emt 0:00:36]} Rf4 {[%emt 0:00:13]} 29. Qh5 {[%emt 0:00:10]} Ra4 {[%emt 0:00:39]} 30. Bc1 {[%emt 0:00:14]} Rxa2 {[%emt 0:00:02]} 31. Re1 {[%emt 0:00:05]} Rxc2 {[%emt 0:00:06]} 32. Bf4 {[%emt 0:00:10]} Rf8 {[%emt 0:00:21]} 33. Rxe5 {[%emt 0:00:17]} Qxd3 {[%emt 0:00:07]} 34. Re1 {[%emt 0:00:15]} Rxf4 {[%emt 0:00:38]} 35. Re8+ {[%emt 0:00:03]} Rf8 {[%emt 0:00:03]} 36. Rxf8+ {[%emt 0:00:09]} Kxf8 {[%emt 0:00:01]} 37. Qxh7 {[%emt 0:00:03]} Qf1# {[%emt 0:00:03]} 0-1

[Event "European Online Club-ch-D 2021"]
[Site "Online"]
[Date "2021.03.27"]
[Round "2.16"]
[White "Gavrilescu, David"]
[Black "Blasco De La Cruz, Luis"]
[Result "1-0"]
[ECO "B05"]
[WhiteElo "2476"]
[BlackElo "1902"]
[Annotator "ChessBase"]
[PlyCount "51"]
[EventDate "2021.03.27"]
[EventType "team-tourn"]
[EventCountry "NET"]
[SourceTitle "playchess.com"]
[Source "ChessBase"]
[SourceQuality "1"]
[TimeControl "900+5"]

1. e4 {[%emt 0:00:00]} Nf6 {[%emt 0:00:12]} 2. e5 {[%emt 0:00:03]} Nd5 {[%emt 0:00:14]} 3. d4 {[%emt 0:00:02]} d6 {[%emt 0:00:02]} 4. Nf3 {[%emt 0:00:01]} Bg4 {[%emt 0:00:03]} 5. Be2 {[%emt 0:00:02]} e6 {[%emt 0:00:03]} 6. O-O {[%emt 0:00:02]} Be7 {[%emt 0:00:03]} 7. c4 {[%emt 0:00:10]} Nb6 {[%emt 0:00:03]} 8. h3 {[%emt 0:00:02]} Bh5 {[%emt 0:00:02]} 9. Nc3 {[%emt 0:00:02]} dxe5 {[%emt 0:00:09]} 10. Nxe5 {[%emt 0:00:58]} Bxe2 {[%emt 0:00:18]} 11. Qxe2 {[%emt 0:00:17]} O-O {[%emt 0:00:45]} 12. Rd1 {[%emt 0:00:03]} c6 {[%emt 0:00:20]} 13. Bf4 {[%emt 0:00:22]} N8d7 {[%emt 0:00:12]} 14. Rd3 {[%emt 0:01:00]} Nf6 {[%emt 0:03:19]} 15. Rad1 {[%emt 0:00:43]} Nbd7 {[%emt 0:00:28]} 16. g4 {[%emt 0:01:13]} Ne8 {[%emt 0:02:04]} 17. d5 {[%emt 0:01:47]} exd5 {[%emt 0:04:12]} 18. cxd5 {[%emt 0:00:31]} Nxe5 {[%emt 0:00:05]} 19. Bxe5 {[%emt 0:00:20]} c5 {[%emt 0:00:38]} 20. d6 {[%emt 0:00:59]} Bf6 {[%emt 0:00:17]} 21. d7 {[%emt 0:01:15]} Bxe5 {[%emt 0:00:46]} 22. Qxe5 {[%emt 0:00:49]} Nc7 {[%emt 0:00:57]} 23. Qxc5 {[%emt 0:00:21]} Ne6 {[%emt 0:00:19]} 24. Qe5 {[%emt 0:01:28]} Qg5 {[%emt 0:01:08]} 25. Qxg5 {[%emt 0:00:07]} Nxg5 {[%emt 0:00:02]} 26. d8=Q {[%emt 0:00:03]} 1-0

[Event "European Online Club-ch-D 2021"]
[Site "Online"]
[Date "2021.03.27"]
[Round "3.1"]
[White "Lagarde, Maxime"]
[Black "Eren, Ataberk"]
[Result "0-1"]
[ECO "A67"]
[WhiteElo "2640"]
[BlackElo "2306"]
[Annotator "ChessBase"]
[PlyCount "100"]
[EventDate "2021.03.27"]
[EventType "team-tourn"]
[EventCountry "NET"]
[SourceTitle "playchess.com"]
[Source "ChessBase"]
[SourceQuality "1"]
[TimeControl "900+5"]

1. c4 {[%emt 0:00:00]} Nf6 {[%emt 0:00:07]} 2. Nc3 {[%emt 0:00:03]} e6 {[%emt 0:00:01]} 3. d4 {[%emt 0:00:05]} c5 {[%emt 0:00:08]} 4. d5 {[%emt 0:00:02]} exd5 {[%emt 0:00:01]} 5. cxd5 {[%emt 0:00:00]} d6 {[%emt 0:00:01]} 6. e4 {[%emt 0:00:01]} g6 {[%emt 0:00:01]} 7. f4 {[%emt 0:00:01]} Bg7 {[%emt 0:00:02]} 8. Bb5+ {[%emt 0:00:02]} Nfd7 {[%emt 0:00:01]} 9. Be2 {[%emt 0:00:04]} O-O {[%emt 0:00:01]} 10. Nf3 {[%emt 0:00:02]} Na6 {[%emt 0:00:02]} 11. O-O {[%emt 0:00:04]} Nc7 {[%emt 0:00:02]} 12. Kh1 {[%emt 0:00:11]} Rb8 {[%emt 0:00:08]} 13. a4 {[%emt 0:00:02]} a6 {[%emt 0:00:26]} 14. f5 {[%emt 0:00:26]} b5 {[%emt 0:00:05]} 15. axb5 {[%emt 0:00:04]} Nxb5 {[%emt 0:00:22]} 16. Bg5 {[%emt 0:00:43]} Qe8 {[%emt 0:03:30]} 17. Nxb5 {[%emt 0:02:51]} axb5 {[%emt 0:00:03]} 18. Qc2 {[%emt 0:00:11]} Nf6 {[%emt 0:00:44]} 19. fxg6 {[%emt 0:01:44]} hxg6 {[%emt 0:01:38]} 20. e5 {[%emt 0:02:47]} Nxd5 {[%emt 0:02:47]} 21. exd6 {[%emt 0:00:10]} Qc6 {[%emt 0:01:16]} 22. Rad1 {[%emt 0:02:02]} Qxd6 {[%emt 0:00:45]} 23. Qe4 {[%emt 0:00:03]} Qe6 {[%emt 0:00:40]} 24. Qxd5 {[%emt 0:00:23]} Qxe2 {[%emt 0:00:03]} 25. Qxc5 {[%emt 0:00:26]} Qxb2 {[%emt 0:01:17]} 26. Bf4 {[%emt 0:02:05]} Ra8 {[%emt 0:00:16]} 27. Be5 {[%emt 0:00:30]} Bxe5 {[%emt 0:00:05]} 28. Nxe5 {[%emt 0:00:06]} Bb7 {[%emt 0:00:40]} 29. Rf2 {[%emt 0:00:09]} Ra1 {[%emt 0:00:55]} 30. Rxb2 {[%emt 0:00:39]} Rxd1+ {[%emt 0:00:02]} 31. Qg1 {[%emt 0:00:01]} Rxg1+ {[%emt 0:00:06]} 32. Kxg1 {[%emt 0:00:00]} Rc8 {[%emt 0:00:02]} 33. g4 {[%emt 0:00:33]} Rc5 {[%emt 0:00:17]} 34. Nd7 {[%emt 0:00:03]} Rc1+ {[%emt 0:00:36]} 35. Kf2 {[%emt 0:00:02]} Bc6 {[%emt 0:00:01]} 36. Nf6+ {[%emt 0:00:03]} Kf8 {[%emt 0:00:06]} 37. g5 {[%emt 0:00:24]} Ke7 {[%emt 0:00:15]} 38. Ng4 {[%emt 0:00:15]} Ke6 {[%emt 0:00:04]} 39. h4 {[%emt 0:00:25]} Rc4 {[%emt 0:00:10]} 40. Kg3 {[%emt 0:00:12]} Rc3+ {[%emt 0:00:12]} 41. Kh2 {[%emt 0:00:09]} Kf5 {[%emt 0:00:11]} 42. Nh6+ {[%emt 0:00:02]} Kf4 {[%emt 0:00:07]} 43. Nxf7 {[%emt 0:00:03]} Rc1 {[%emt 0:00:03]} 44. Rf2+ {[%emt 0:00:03]} Bf3 {[%emt 0:00:02]} 45. Kh3 {[%emt 0:00:09]} b4 {[%emt 0:00:10]} 46. Nh8 {[%emt 0:00:21]} Rh1+ {[%emt 0:00:03]} 47. Rh2 {[%emt 0:00:01]} Rxh2+ {[%emt 0:00:01]} 48. Kxh2 {[%emt 0:00:00]} b3 {[%emt 0:00:01]} 49. Nxg6+ {[%emt 0:00:02]} Ke4 {[%emt 0:00:16]} 50. h5 {[%emt 0:00:03]} Bxh5 {[%emt 0:00:03]} 0-1

[Event "European Online Club-ch-D 2021"]
[Site "Online"]
[Date "2021.03.27"]
[Round "3.2"]
[White "Erdogan, Anil Berk"]
[Black "Maurizzi, Marc Andria"]
[Result "0-1"]
[ECO "B45"]
[WhiteElo "2155"]
[BlackElo "2461"]
[Annotator "ChessBase"]
[PlyCount "68"]
[EventDate "2021.03.27"]
[EventType "team-tourn"]
[EventCountry "NET"]
[SourceTitle "playchess.com"]
[Source "ChessBase"]
[SourceQuality "1"]
[TimeControl "900+5"]

1. e4 {[%emt 0:00:00]} c5 {[%emt 0:00:05]} 2. Nf3 {[%emt 0:00:03]} e6 {[%emt 0:00:02]} 3. d4 {[%emt 0:00:01]} cxd4 {[%emt 0:00:00]} 4. Nxd4 {[%emt 0:00:01]} Nf6 {[%emt 0:00:02]} 5. Nc3 {[%emt 0:00:02]} Nc6 {[%emt 0:00:01]} 6. Ndb5 {[%emt 0:00:09]} Bc5 {[%emt 0:00:05]} 7. Bf4 {[%emt 0:01:04]} O-O {[%emt 0:00:06]} 8. Bc7 {[%emt 0:00:26]} Qe7 {[%emt 0:00:03]} 9. Bd6 {[%emt 0:00:13]} Bxd6 {[%emt 0:00:02]} 10. Qxd6 {[%emt 0:00:24]} Qd8 {[%emt 0:00:03]} 11. O-O-O {[%emt 0:00:20]} a6 {[%emt 0:00:47]} 12. Nd4 {[%emt 0:01:49]} Ne7 {[%emt 0:00:04]} 13. Be2 {[%emt 0:00:57]} b5 {[%emt 0:00:53]} 14. g4 {[%emt 0:01:14]} Bb7 {[%emt 0:00:16]} 15. Bf3 {[%emt 0:00:39]} Rc8 {[%emt 0:01:49]} 16. Kb1 {[%emt 0:01:11]} Ne8 {[%emt 0:03:48]} 17. Qg3 {[%emt 0:00:55]} Ng6 {[%emt 0:00:49]} 18. e5 {[%emt 0:02:38]} Bxf3 {[%emt 0:00:49]} 19. Nxf3 {[%emt 0:00:00]} f5 {[%emt 0:01:19]} 20. g5 {[%emt 0:01:14]} Rc4 {[%emt 0:01:14]} 21. Ne2 {[%emt 0:01:10]} Nc7 {[%emt 0:00:12]} 22. h4 {[%emt 0:00:18]} Nd5 {[%emt 0:00:30]} 23. h5 {[%emt 0:00:23]} Nge7 {[%emt 0:00:02]} 24. Nfd4 {[%emt 0:00:21]} Qb6 {[%emt 0:00:49]} 25. f4 {[%emt 0:00:37]} Rfc8 {[%emt 0:00:03]} 26. Rd2 {[%emt 0:00:28]} b4 {[%emt 0:00:14]} 27. Rhd1 {[%emt 0:00:06]} Nc3+ {[%emt 0:00:15]} 28. Kc1 {[%emt 0:00:28]} Nxa2+ {[%emt 0:00:22]} 29. Kb1 {[%emt 0:00:02]} Nc3+ {[%emt 0:00:00]} 30. Kc1 {[%emt 0:00:01]} Nxd1 {[%emt 0:00:30]} 31. Kxd1 {[%emt 0:00:00]} Qb7 {[%emt 0:00:28]} 32. Qg1 {[%emt 0:00:14]} Qe4 {[%emt 0:00:24]} 33. Qf1 {[%emt 0:00:09]} Nd5 {[%emt 0:00:04]} 34. b3 {[%emt 0:00:06]} Ne3+ {[%emt 0:00:02]} 0-1

[Event "European Online Club-ch-D 2021"]
[Site "Online"]
[Date "2021.03.27"]
[Round "3.3"]
[White "Medvegy, Zoltan"]
[Black "Korkmaz, Necmettin"]
[Result "1-0"]
[ECO "A22"]
[WhiteElo "2527"]
[BlackElo "2101"]
[Annotator "ChessBase"]
[PlyCount "75"]
[EventDate "2021.03.27"]
[EventType "team-tourn"]
[EventCountry "NET"]
[SourceTitle "playchess.com"]
[Source "ChessBase"]
[SourceQuality "1"]
[TimeControl "900+5"]

1. c4 {[%emt 0:00:00]} e5 {[%emt 0:00:22]} 2. g3 {[%emt 0:00:07]} Nf6 {[%emt 0:00:04]} 3. Bg2 {[%emt 0:00:02]} d5 {[%emt 0:00:04]} 4. cxd5 {[%emt 0:00:02]} Nxd5 {[%emt 0:00:05]} 5. Nc3 {[%emt 0:00:01]} Nb6 {[%emt 0:00:03]} 6. e3 {[%emt 0:00:04]} Be7 {[%emt 0:00:10]} 7. Nge2 {[%emt 0:00:02]} O-O {[%emt 0:00:02]} 8. O-O {[%emt 0:00:02]} Nc6 {[%emt 0:00:04]} 9. f4 {[%emt 0:00:03]} Qd3 {[%emt 0:01:33]} 10. fxe5 {[%emt 0:01:17]} Nxe5 {[%emt 0:00:31]} 11. Nf4 {[%emt 0:00:02]} Qd8 {[%emt 0:01:07]} 12. d4 {[%emt 0:00:07]} Ng6 {[%emt 0:00:26]} 13. b3 {[%emt 0:03:09]} Nxf4 {[%emt 0:00:32]} 14. gxf4 {[%emt 0:00:15]} c5 {[%emt 0:00:14]} 15. d5 {[%emt 0:00:14]} Bf6 {[%emt 0:00:08]} 16. Bb2 {[%emt 0:00:05]} Re8 {[%emt 0:00:06]} 17. e4 {[%emt 0:00:48]} Bd4+ {[%emt 0:00:05]} 18. Kh1 {[%emt 0:00:01]} Qh4 {[%emt 0:00:04]} 19. Qd3 {[%emt 0:03:30]} Bg4 {[%emt 0:01:09]} 20. Nd1 {[%emt 0:01:04]} Nxd5 {[%emt 0:04:42]} 21. Bxd4 {[%emt 0:00:04]} cxd4 {[%emt 0:00:30]} 22. Qxd4 {[%emt 0:01:34]} Bxd1 {[%emt 0:00:58]} 23. exd5 {[%emt 0:01:52]} Be2 {[%emt 0:00:27]} 24. Rf2 {[%emt 0:00:05]} Bg4 {[%emt 0:00:50]} 25. f5 {[%emt 0:01:02]} Rad8 {[%emt 0:00:52]} 26. h3 {[%emt 0:00:55]} h5 {[%emt 0:00:19]} 27. Kg1 {[%emt 0:00:08]} Rd6 {[%emt 0:00:47]} 28. hxg4 {[%emt 0:00:24]} hxg4 {[%emt 0:00:03]} 29. f6 {[%emt 0:00:04]} Rxf6 {[%emt 0:00:14]} 30. Rxf6 {[%emt 0:00:06]} gxf6 {[%emt 0:00:02]} 31. Rf1 {[%emt 0:00:17]} Re5 {[%emt 0:00:12]} 32. d6 {[%emt 0:00:05]} Rh5 {[%emt 0:00:11]} 33. d7 {[%emt 0:00:05]} Qh2+ {[%emt 0:00:08]} 34. Kf2 {[%emt 0:00:01]} Rf5+ {[%emt 0:00:31]} 35. Ke1 {[%emt 0:00:04]} Re5+ {[%emt 0:00:06]} 36. Kd1 {[%emt 0:00:02]} Qxg2 {[%emt 0:00:05]} 37. d8=Q+ {[%emt 0:00:03]} Kg7 {[%emt 0:00:01]} 38. Qxf6+ {[%emt 0:00:08]} 1-0

[Event "European Online Club-ch-D 2021"]
[Site "Online"]
[Date "2021.03.27"]
[Round "3.4"]
[White "Kilic, Gokturk Kagan"]
[Black "Guliyev, Namig"]
[Result "1-0"]
[ECO "D24"]
[WhiteElo "2084"]
[BlackElo "2538"]
[Annotator "ChessBase"]
[PlyCount "92"]
[EventDate "2021.03.27"]
[EventType "team-tourn"]
[EventCountry "NET"]
[SourceTitle "playchess.com"]
[Source "ChessBase"]
[SourceQuality "1"]
[TimeControl "900+5"]

1. d4 {[%emt 0:00:00]} d5 {[%emt 0:00:02]} 2. c4 {[%emt 0:00:04]} dxc4 {[%emt 0:00:02]} 3. Nf3 {[%emt 0:00:05]} Nf6 {[%emt 0:00:06]} 4. Nc3 {[%emt 0:00:07]} a6 {[%emt 0:00:02]} 5. a4 {[%emt 0:00:43]} e6 {[%emt 0:00:05]} 6. e3 {[%emt 0:00:46]} b6 {[%emt 0:00:02]} 7. Bxc4 {[%emt 0:00:03]} Bb7 {[%emt 0:00:01]} 8. O-O {[%emt 0:00:01]} Bb4 {[%emt 0:00:02]} 9. Ne2 {[%emt 0:03:36]} O-O {[%emt 0:00:07]} 10. Nf4 {[%emt 0:00:20]} Qe7 {[%emt 0:00:07]} 11. Ne5 {[%emt 0:00:25]} Nbd7 {[%emt 0:00:10]} 12. Nfd3 {[%emt 0:00:27]} Bd6 {[%emt 0:00:05]} 13. b3 {[%emt 0:03:42]} c5 {[%emt 0:00:16]} 14. Bb2 {[%emt 0:00:07]} cxd4 {[%emt 0:00:16]} 15. Bxd4 {[%emt 0:00:14]} Rfd8 {[%emt 0:00:03]} 16. Qe2 {[%emt 0:00:21]} Nxe5 {[%emt 0:00:22]} 17. Nxe5 {[%emt 0:00:14]} Bc5 {[%emt 0:00:02]} 18. Rfd1 {[%emt 0:02:27]} Bxd4 {[%emt 0:00:05]} 19. exd4 {[%emt 0:00:03]} Nd5 {[%emt 0:00:07]} 20. Qg4 {[%emt 0:00:29]} b5 {[%emt 0:00:31]} 21. Bd3 {[%emt 0:00:35]} b4 {[%emt 0:00:39]} 22. Re1 {[%emt 0:00:43]} Qf6 {[%emt 0:01:21]} 23. Rac1 {[%emt 0:00:24]} g6 {[%emt 0:00:12]} 24. Rc5 {[%emt 0:00:07]} Nf4 {[%emt 0:00:24]} 25. Be4 {[%emt 0:00:23]} h5 {[%emt 0:00:43]} 26. Qf3 {[%emt 0:00:04]} Bxe4 {[%emt 0:00:39]} 27. Rxe4 {[%emt 0:00:02]} Nd5 {[%emt 0:00:03]} 28. Rxd5 {[%emt 0:00:03]} Qxf3 {[%emt 0:00:13]} 29. Rxd8+ {[%emt 0:00:04]} Rxd8 {[%emt 0:00:02]} 30. Nxf3 {[%emt 0:00:03]} Rc8 {[%emt 0:00:02]} 31. g3 {[%emt 0:00:05]} Rc2 {[%emt 0:00:04]} 32. d5 {[%emt 0:00:04]} exd5 {[%emt 0:00:03]} 33. Rxb4 {[%emt 0:00:02]} Rc3 {[%emt 0:00:01]} 34. Ne5 {[%emt 0:00:05]} g5 {[%emt 0:00:05]} 35. Nd7 {[%emt 0:00:04]} Kg7 {[%emt 0:00:03]} 36. Nb6 {[%emt 0:00:18]} Rd3 {[%emt 0:00:09]} 37. Kf1 {[%emt 0:00:06]} a5 {[%emt 0:00:18]} 38. Rb5 {[%emt 0:00:03]} f6 {[%emt 0:00:07]} 39. Nxd5 {[%emt 0:00:04]} h4 {[%emt 0:00:01]} 40. gxh4 {[%emt 0:00:04]} gxh4 {[%emt 0:00:02]} 41. Ne3 {[%emt 0:00:03]} Kg6 {[%emt 0:00:03]} 42. Ke2 {[%emt 0:00:03]} Rc3 {[%emt 0:00:05]} 43. Kf3 {[%emt 0:00:01]} Rc1 {[%emt 0:00:05]} 44. Kg4 {[%emt 0:00:04]} Rh1 {[%emt 0:00:03]} 45. h3 {[%emt 0:00:03]} Rg1+ {[%emt 0:00:03]} 46. Kxh4 {[%emt 0:00:02]} Rb1 {[%emt 0:00:05]} 1-0

[Event "European Online Club-ch-D 2021"]
[Site "Online"]
[Date "2021.03.27"]
[Round "3.9"]
[White "Bauer, Christian"]
[Black "Lopez Del Alamo, Antonio"]
[Result "1-0"]
[ECO "A08"]
[WhiteElo "2639"]
[BlackElo "2295"]
[Annotator "ChessBase"]
[PlyCount "65"]
[EventDate "2021.03.27"]
[EventType "team-tourn"]
[EventCountry "NET"]
[SourceTitle "playchess.com"]
[Source "ChessBase"]
[SourceQuality "1"]
[TimeControl "900+5"]

1. e4 {[%emt 0:00:00]} c5 {[%emt 0:00:06]} 2. Nf3 {[%emt 0:00:02]} e6 {[%emt 0:00:07]} 3. c3 {[%emt 0:00:02]} d5 {[%emt 0:00:35]} 4. d3 {[%emt 0:00:02]} Nc6 {[%emt 0:00:48]} 5. Qe2 {[%emt 0:00:35]} Nge7 {[%emt 0:00:18]} 6. g3 {[%emt 0:00:04]} g6 {[%emt 0:00:03]} 7. Bg2 {[%emt 0:00:02]} Bg7 {[%emt 0:00:02]} 8. O-O {[%emt 0:00:01]} O-O {[%emt 0:00:02]} 9. Re1 {[%emt 0:00:23]} b5 {[%emt 0:02:43]} 10. e5 {[%emt 0:00:22]} h6 {[%emt 0:00:43]} 11. Be3 {[%emt 0:00:34]} d4 {[%emt 0:01:29]} 12. cxd4 {[%emt 0:00:06]} cxd4 {[%emt 0:00:04]} 13. Bd2 {[%emt 0:00:56]} Bb7 {[%emt 0:00:57]} 14. Na3 {[%emt 0:00:04]} Qb6 {[%emt 0:00:27]} 15. h4 {[%emt 0:00:04]} Nd5 {[%emt 0:01:17]} 16. h5 {[%emt 0:01:49]} g5 {[%emt 0:00:39]} 17. Qe4 {[%emt 0:00:10]} Rae8 {[%emt 0:01:16]} 18. Bxg5 {[%emt 0:03:30]} hxg5 {[%emt 0:00:25]} 19. Nxg5 {[%emt 0:00:02]} f5 {[%emt 0:00:05]} 20. exf6 {[%emt 0:00:01]} Nxf6 {[%emt 0:00:02]} 21. Qh4 {[%emt 0:00:02]} Nd8 {[%emt 0:01:54]} 22. h6 {[%emt 0:00:02]} Bh8 {[%emt 0:00:06]} 23. h7+ {[%emt 0:00:11]} Kg7 {[%emt 0:00:02]} 24. Bxb7 {[%emt 0:00:10]} Qxb7 {[%emt 0:00:40]} 25. Re5 {[%emt 0:00:37]} a6 {[%emt 0:00:40]} 26. Rae1 {[%emt 0:00:04]} Kg6 {[%emt 0:00:53]} 27. Nc2 {[%emt 0:01:03]} Qg7 {[%emt 0:00:39]} 28. Nxd4 {[%emt 0:01:14]} Qh6 {[%emt 0:00:03]} 29. Qf4 {[%emt 0:00:11]} Nxh7 {[%emt 0:00:13]} 30. Qe4+ {[%emt 0:00:05]} Kg7 {[%emt 0:00:01]} 31. Nxh7 {[%emt 0:00:32]} Qxh7 {[%emt 0:00:02]} 32. Rg5+ {[%emt 0:00:02]} Kh6 {[%emt 0:00:08]} 33. Qh4# {[%emt 0:00:05]} 1-0

[Event "European Online Club-ch-D 2021"]
[Site "Online"]
[Date "2021.03.27"]
[Round "3.10"]
[White "Gongora Montes, Benjamin"]
[Black "Pelletier, Yannick"]
[Result "0-1"]
[ECO "D03"]
[WhiteElo "2198"]
[BlackElo "2581"]
[Annotator "ChessBase"]
[PlyCount "82"]
[EventDate "2021.03.27"]
[EventType "team-tourn"]
[EventCountry "NET"]
[SourceTitle "playchess.com"]
[Source "ChessBase"]
[SourceQuality "1"]
[TimeControl "900+5"]

1. d4 {[%emt 0:00:00]} Nf6 {[%emt 0:00:10]} 2. Nf3 {[%emt 0:00:05]} d5 {[%emt 0:00:07]} 3. Bg5 {[%emt 0:00:05]} Ne4 {[%emt 0:00:21]} 4. Bf4 {[%emt 0:00:07]} Bf5 {[%emt 0:00:31]} 5. e3 {[%emt 0:00:05]} e6 {[%emt 0:00:04]} 6. Nbd2 {[%emt 0:00:55]} Nd7 {[%emt 0:00:19]} 7. h3 {[%emt 0:00:28]} Be7 {[%emt 0:00:11]} 8. Be2 {[%emt 0:01:03]} O-O {[%emt 0:00:04]} 9. O-O {[%emt 0:00:09]} c5 {[%emt 0:00:16]} 10. c4 {[%emt 0:00:16]} Nb6 {[%emt 0:00:35]} 11. Rc1 {[%emt 0:00:59]} Nxd2 {[%emt 0:02:39]} 12. Qxd2 {[%emt 0:00:46]} Nxc4 {[%emt 0:00:34]} 13. Bxc4 {[%emt 0:00:09]} dxc4 {[%emt 0:00:00]} 14. Rxc4 {[%emt 0:00:02]} Be4 {[%emt 0:01:46]} 15. dxc5 {[%emt 0:01:20]} Qxd2 {[%emt 0:00:05]} 16. Nxd2 {[%emt 0:00:03]} Bd3 {[%emt 0:00:01]} 17. Rfc1 {[%emt 0:00:09]} Bxc4 {[%emt 0:00:10]} 18. Rxc4 {[%emt 0:00:05]} Rfd8 {[%emt 0:00:14]} 19. e4 {[%emt 0:00:16]} Bf6 {[%emt 0:03:10]} 20. b3 {[%emt 0:01:19]} Rd4 {[%emt 0:00:23]} 21. Kf1 {[%emt 0:00:32]} Rc8 {[%emt 0:00:16]} 22. Be3 {[%emt 0:01:44]} Rxc4 {[%emt 0:00:04]} 23. Nxc4 {[%emt 0:00:04]} Bc3 {[%emt 0:00:38]} 24. Nd6 {[%emt 0:00:54]} Rb8 {[%emt 0:00:03]} 25. Ke2 {[%emt 0:00:06]} Bb4 {[%emt 0:00:26]} 26. Kd3 {[%emt 0:00:49]} b6 {[%emt 0:00:16]} 27. Kc4 {[%emt 0:00:16]} bxc5 {[%emt 0:00:27]} 28. Bxc5 {[%emt 0:00:20]} a5 {[%emt 0:00:58]} 29. e5 {[%emt 0:00:36]} g5 {[%emt 0:01:48]} 30. g4 {[%emt 0:00:53]} Kg7 {[%emt 0:00:04]} 31. f3 {[%emt 0:01:21]} h6 {[%emt 0:00:05]} 32. Bd4 {[%emt 0:00:49]} Rd8 {[%emt 0:00:14]} 33. Bc5 {[%emt 0:00:15]} Rb8 {[%emt 0:00:01]} 34. Bd4 {[%emt 0:00:02]} Kg6 {[%emt 0:00:02]} 35. Bb2 {[%emt 0:00:21]} f6 {[%emt 0:00:09]} 36. a3 {[%emt 0:00:04]} Bxd6 {[%emt 0:00:15]} 37. exd6 {[%emt 0:00:02]} Kf7 {[%emt 0:00:05]} 38. Bc3 {[%emt 0:00:21]} Rc8+ {[%emt 0:00:14]} 39. Kd3 {[%emt 0:00:10]} Rc5 {[%emt 0:00:10]} 40. b4 {[%emt 0:00:13]} axb4 {[%emt 0:00:14]} 41. Bxb4 {[%emt 0:00:02]} Rc1 {[%emt 0:00:06]} 0-1